bitfinex-derivatives/quotes_SOLF0:USTF0_20251126
["timestamp","ask_amount","ask_price","bid_price","bid_amount"]
[1764177310301,0.05397007,136.86,136.84,0.05218999]
[1764177312197,6.63217007,136.86,136.84,0.05218999]
[1764177314392,6.5793,136.84,136.78,4.66444967]
[1764177314598,6.5793,136.84,136.79,25.08]
[1764177314993,6.5793,136.84,136.77,6.5822]
[1764177315198,102.3302,136.86,136.79,25.08]
[1764177315397,0.05319616,136.84,136.81,0.04643605]
[1764177315603,0.05319616,136.84,136.74,4.66444967]
[1764177315798,107.02424967,136.82,136.72,1.27192982]
[1764177316109,107.02424967,136.82,136.7,4.66444967]
[1764177316110,4.66444967,136.84,136.73,25.08]
[1764177316411,6.5804,136.82,136.73,25.08]
[1764177316701,0.05186242,136.79,136.76,0.05379872]
[1764177317210,1.51186242,136.79,136.66,18.21177178]
[1764177317402,1.51186242,136.79,136.64,102.4887]
[1764177317403,107.05494967,136.78,136.67,25.1]
[1764177317712,6.5841,136.74,136.66,25.1]
[1764177317892,4.66444967,136.75,136.62,4.66444967]
[1764177318203,6.5852,136.72,136.62,5.93742635]
[1764177318406,0.04842246,136.7,136.67,0.05468194]
[1764177319404,21.92324473,136.83,136.68,102.4621]
[1764177319600,6.5813,136.8,136.7,6.5857]
[1764177319801,6.5813,136.8,136.7,31.7057]
[1764177320406,0.05137104,136.76,136.74,0.04747937]
[1764177322599,6.63457104,136.76,136.74,0.04747937]
[1764177322999,0.05137104,136.76,136.74,0.04747937]
[1764177326812,6.63457104,136.76,136.74,0.04747937]
[1764177328511,6.584,136.74,136.66,6.5875]
[1764177328710,102.3966,136.77,136.66,25.14]
[1764177329104,6.5841,136.74,136.66,25.14]
[1764177329620,0.05108044,136.71,136.69,0.05468842]
[1764177329805,0.04949632,136.71,136.69,0.05468842]
[1764177330207,6.5837,136.75,136.69,0.05468842]
[1764177330208,102.3759,136.8,136.69,1.51468842]
[1764177330411,102.3759,136.8,136.68,25.14]
[1764177331210,0.05497036,136.75,136.72,0.05299308]
[1764177332317,6.5807,136.81,136.72,1.51299308]
[1764177332512,6.5807,136.81,136.71,102.437]
[1764177332712,102.3324,136.86,136.72,102.4314]
[1764177332909,102.3324,136.86,136.73,102.4243]
[1764177333108,102.3324,136.86,136.74,25.14]
[1764177333314,0.04846941,136.81,136.79,0.04864695]
[1764177333616,0.05104441,136.81,136.79,0.04864695]
[1764177334012,6.5777,136.87,136.79,1.50864695]
[1764177334206,25.14,136.9,136.8,25.16]
[1764177334907,6.5771,136.88,136.8,25.16]
[1764177335215,0.04665791,136.86,136.84,0.04686985]
[1764177337918,0.04665791,136.86,136.79,25.14]
[1764177338123,102.3036,136.89,136.79,25.14]
[1764177338313,114.69900722,136.91,136.79,25.14]
[1764177338617,6.5772,136.88,136.79,31.721]
[1764177338818,0.05614621,136.85,136.82,0.04835489]
[1764177341522,102.2626,136.94,136.83,25.14]
[1764177342020,102.2626,136.94,136.83,31.7191]
[1764177342021,6.5756,136.91,136.83,31.7191]
[1764177342222,102.2565,136.95,136.83,25.14]
[1764177342418,6.5751,136.92,136.84,6.5786]
[1764177342623,102.2565,136.95,136.88,0.04846651]
[1764177342624,0.05322699,136.9,136.88,0.04846651]
[1764177342811,0.05092779,136.9,136.88,0.05560108]
[1764177346622,6.62692779,136.9,136.88,0.05560108]
[1764177347427,102.34532779,136.9,136.8,6.5803]
[1764177347626,102.3066,136.88,136.77,62.0]
[1764177347828,102.3142,136.87,136.77,87.14]
[1764177348418,0.05228842,136.83,136.81,0.05586658]
[1764177348618,114.70400722,136.9,136.77,87.14]
[1764177348922,0.05106502,136.81,136.79,6.63175941]
[1764177349121,6.5782,136.86,136.79,31.721]
[1764177349322,0.04904108,136.84,136.81,0.05269146]
[1764177357220,6.62824108,136.84,136.81,0.05269146]
[1764177357527,0.04904108,136.84,136.81,0.05269146]
[1764177357926,6.5797,136.83,136.81,0.05269146]
[1764177359126,0.04904108,136.84,136.81,0.05269146]
[1764177359527,6.5796,136.83,136.81,0.05269146]
[1764177359724,102.3528,136.83,136.7,114.85350722]
[1764177359922,102.3528,136.83,136.72,25.14]
[1764177360122,6.582,136.78,136.7,12.40960722]
[1764177360321,102.3581,136.82,136.7,12.40960722]
[1764177360322,102.3581,136.82,136.71,25.14]
[1764177360640,102.3528,136.83,136.71,25.14]
[1764177360934,102.3528,136.83,136.74,6.5839]
[1764177361224,0.05060976,136.78,136.76,0.05340195]
[1764177361428,6.5804,136.82,136.76,0.05340195]
[1764177361627,0.05404743,136.78,136.73,102.4242]
[1764177361824,6.58,136.83,136.77,0.04985878]
[1764177362131,0.05596747,136.77,136.75,6.583]
[1764177362329,114.73980722,136.86,136.73,102.4242]
[1764177362530,0.05396842,136.76,136.73,102.4242]
[1764177362728,6.5796,136.83,136.78,0.05115951]
[1764177362932,0.04713847,136.79,136.78,0.05115951]
[1764177363134,6.5801,136.82,136.78,0.05115951]
[1764177363324,0.05244053,136.8,136.78,0.05115951]
[1764177364725,102.2766,136.93,136.79,25.14]
[1764177364925,114.68620722,136.93,136.79,25.14]
[1764177365122,12.40960722,136.93,136.81,102.3638]
[1764177365718,6.5756,136.91,136.81,102.3638]
[1764177365922,0.04652123,136.88,136.86,0.04942448]
[1764177371635,0.04652123,136.88,136.86,6.62702448]
[1764177371936,0.04652123,136.88,136.86,0.04942448]
[1764177373536,6.5737,136.95,136.86,102.36922448]
[1764177373838,6.5737,136.95,136.85,127.4664]
[1764177373839,7.11352155,136.99,136.85,13.54732211]
[1764177374032,6.5731,136.96,136.86,31.7175]
[1764177374340,102.2397,136.97,136.86,31.7175]
[1764177374533,102.2397,136.97,136.86,6.5775]
[1764177374738,0.05463947,136.93,136.9,0.04677522]
[1764177376332,6.62913947,136.93,136.9,0.04677522]
[1764177376732,0.05463947,136.93,136.9,0.04677522]
[1764177378642,6.62913947,136.93,136.9,0.04677522]
[1764177379243,0.05463947,136.93,136.9,0.04677522]
[1764177380843,0.05463947,136.93,136.9,6.62257522]
[1764177381048,0.05463947,136.93,136.9,0.04677522]
[1764177381543,0.05463947,136.93,136.91,6.5752]
[1764177381742,0.05463947,136.93,136.9,0.04677522]
[1764177383646,6.62903947,136.93,136.9,0.04677522]
[1764177385735,0.05463947,136.93,136.9,0.04677522]
[1764177386248,0.05463947,136.93,136.9,6.62247522]
[1764177386538,0.05463947,136.93,136.9,0.04677522]
[1764177386848,0.05463947,136.93,136.91,6.5753]
[1764177387248,0.05463947,136.93,136.91,25.12]
[1764177388048,0.05463947,136.93,136.91,25.14]
[1764177388549,0.05463947,136.93,136.91,31.7153]
[1764177388950,6.5719,136.99,136.91,25.14]
[1764177389753,6.5719,136.99,136.93,6.5742]
[1764177389944,6.5719,136.99,136.91,25.14]
[1764177390146,0.05307621,136.96,136.94,0.04647155]
[1764177390856,0.05307621,136.96,136.94,6.62037155]
[1764177392155,102.255,136.95,136.84,75.54427071]
[1764177392458,102.2484,136.96,136.85,25.12]
[1764177393350,109.34862155,136.98,136.85,25.12]
[1764177393555,0.05152649,136.92,136.89,0.04797745]
[1764177393867,109.34862155,136.98,136.86,102.3207]
[1764177394070,0.05289831,136.9,136.89,6.5763]
[1764177394273,6.5736,136.95,136.86,109.43422155]
[1764177394458,102.2285,136.99,136.86,109.43422155]
[1764177394864,6.573,136.96,136.9,6.5757]
[1764177395063,109.32522155,137.01,136.91,25.12]
[1764177395460,6.5729,136.96,136.95,0.05323188]
[1764177401076,0.04780694,136.97,136.95,0.05323188]
[1764177401878,6.62050694,136.97,136.95,0.05323188]
[1764177402079,0.04780694,136.97,136.95,0.05323188]
[1764177402485,6.5729,136.96,136.95,0.05323188]
[1764177403077,0.04780694,136.97,136.95,0.05323188]
[1764177403581,102.182,137.05,136.95,26.63323188]
[1764177403780,102.1945,137.03,136.91,7.11352155]
[1764177403979,102.1945,137.03,136.93,25.12]
[1764177404572,0.04930855,136.99,136.97,0.05371557]
[1764177404772,5.21934739,137.06,136.97,10.7]
[1764177404974,102.1638,137.08,136.97,10.7]
[1764177405376,6.5692,137.04,136.97,10.7]
[1764177405576,6.5692,137.04,136.98,25.16]
[1764177405986,0.04863842,137.02,137.0,0.05325429]
[1764177413692,6.5681,137.07,137.0,6.62425429]
[1764177413897,6.5681,137.07,136.98,25.14]
[1764177414187,6.5681,137.07,136.99,6.5713]
[1764177414792,102.1572,137.08,136.99,31.7114]
[1764177414988,0.04744742,137.04,137.02,0.04947154]
[1764177416292,6.61654742,137.04,137.02,0.04947154]
[1764177420892,102.2168,137.0,136.91,6.5749]
[1764177421092,102.2247,136.99,136.91,20.36]
[1764177421291,102.2247,136.99,136.87,225.75394709]
[1764177421495,102.2314,136.98,136.88,25.14]
[1764177421982,0.05417427,136.94,136.92,0.04934052]
[1764177422182,108.9489012,137.04,136.9,102.2874]
[1764177422183,32.25352155,137.03,136.9,102.2874]
[1764177422389,102.1898,137.04,136.91,102.2832]
[1764177422795,6.5706,137.01,136.94,6.5738]
[1764177422992,6.5706,137.01,136.95,25.14]
[1764177423192,0.05033649,136.99,136.96,0.04965683]
[1764177425395,0.05033649,136.99,136.96,6.62255683]
[1764177426798,0.05033649,136.99,136.96,0.04965683]
[1764177428093,3.03322902,136.99,136.96,0.04965683]
[1764177428600,0.05033649,136.99,136.96,0.04965683]
[1764177430803,0.05033649,136.99,136.96,6.62245683]
[1764177433505,0.05033649,136.99,136.96,0.04965683]
[1764177436801,0.05033649,136.99,136.96,6.62245683]
[1764177437006,0.05033649,136.99,136.96,0.04965683]
[1764177438202,0.05033649,136.99,136.96,6.62255683]
[1764177441408,0.05033649,136.99,136.97,6.5724]
[1764177442610,0.05033649,136.99,136.96,0.04965683]
[1764177443808,0.05033649,136.99,136.97,6.5724]
[1764177444007,0.05033649,136.99,136.96,0.04965683]
[1764177444311,0.05033649,136.99,136.97,25.1]
[1764177446013,0.05033649,136.99,136.97,31.6724]
[1764177447211,0.05033649,136.99,136.98,6.572]
[1764177449312,102.138,137.11,136.98,25.1]
[1764177449513,5.22520072,137.1,136.99,13.62116229]
[1764177449716,102.1344,137.11,137.0,13.62116229]
[1764177449912,5.22522862,137.1,137.0,13.62116229]
[1764177450122,102.1344,137.11,137.0,13.62116229]
[1764177450315,6.62185972,137.07,137.04,0.05561448]
[1764177450818,0.05415972,137.07,137.04,0.05561448]
[1764177451207,0.05415972,137.07,137.04,6.62461448]
[1764177451715,0.05415972,137.07,137.04,0.05561448]
[1764177453221,4.65471627,137.16,137.05,6.5685]
[1764177453416,106.75511627,137.16,137.05,4.65471627]
[1764177453815,106.75511627,137.16,137.06,62.0]
[1764177454016,106.75511627,137.16,137.07,25.1]
[1764177454310,4.70618331,137.13,137.1,0.04691508]
[1764177454814,6.5653,137.12,137.1,0.04691508]
[1764177455225,0.05146704,137.13,137.1,0.04691508]
[1764177463436,102.1454,137.1,137.0,4.65471627]
[1764177463626,106.79511627,137.11,137.0,29.75471627]
[1764177464227,6.5666,137.1,137.0,131.96731627]
[1764177464630,0.04770134,137.06,137.04,0.05362883]
[1764177465737,102.1077,137.15,137.04,0.05362883]
[1764177465939,4.65471627,137.14,137.04,62.0]
[1764177466733,4.65471627,137.14,137.08,0.0497888]
[1764177467041,0.0479346,137.1,137.08,0.0497888]
[1764177468432,0.0479346,137.1,137.08,25.1497888]
[1764177470936,0.0479346,137.1,137.08,0.0497888]
[1764177474550,6.6142346,137.1,137.08,0.0497888]
[1764177474850,6.6142346,137.1,137.01,4.65471627]
[1764177474851,0.0479346,137.1,137.01,4.65471627]
[1764177475052,6.5677,137.07,137.02,25.08]
[1764177476049,0.04816491,137.06,137.03,0.04753327]
[1764177482664,6.5687,137.05,137.03,0.04753327]
[1764177483455,0.04816491,137.06,137.03,0.04753327]
[1764177488048,0.04816491,137.06,136.95,22.71374389]
[1764177488049,102.1884,137.04,136.95,13.62116229]
[1764177488247,4.65471627,137.03,136.95,6.5733]
[1764177488949,4.65471627,137.03,136.93,38.70116229]
[1764177488950,0.05186546,137.0,136.98,0.05046259]
[1764177489248,0.05186546,137.0,136.92,13.62116229]
[1764177489249,102.2336,136.98,136.87,20.54116229]
[1764177489453,4.65471627,136.97,136.87,20.54116229]
[1764177489652,6.5731,136.96,136.87,20.54116229]
[1764177489860,102.2459,136.96,136.87,13.62116229]
[1764177490052,0.05096441,136.93,136.9,0.04920915]
[1764177490856,0.05096441,136.93,136.91,62.0]
[1764177491351,0.05096441,136.93,136.9,0.04920915]
[1764177494360,0.05096441,136.93,136.91,62.0]
[1764177495656,6.5716,136.99,136.92,6.5747]
[1764177495858,7.11061892,137.02,136.93,25.1]
[1764177496557,6.5711,137.0,136.93,31.6742]
[1764177496759,0.05447826,136.99,136.96,0.04691364]
[1764177501670,6.572,136.98,136.96,0.04691364]
[1764177512081,6.5724,136.97,136.96,0.04691364]
[1764177521587,102.2458,136.96,136.88,2.9848135]
[1764177522284,102.2458,136.96,136.88,16.60597579]
[1764177522484,6.5748,136.92,136.91,0.05312523]
[1764177524184,0.04834448,136.93,136.91,0.05312523]
[1764177528896,3.03315798,136.93,136.91,0.05312523]
[1764177529486,6.5748,136.92,136.91,0.05312523]
[1764177533597,3.03315798,136.93,136.91,0.05312523]
[1764177534401,6.5748,136.92,136.91,0.05312523]
[1764177534894,3.03315798,136.93,136.91,0.05312523]
[1764177535796,9.60745798,136.93,136.91,0.05312523]
[1764177536798,6.62264448,136.93,136.91,0.05312523]
[1764177537798,0.04834448,136.93,136.91,0.05312523]
[1764177541502,6.62274448,136.93,136.91,0.05312523]
[1764177541697,0.04834448,136.93,136.91,0.05312523]
[1764177541904,2.9848135,136.92,136.87,13.62116229]
[1764177542211,6.5761,136.9,136.86,13.62116229]
[1764177542905,0.04924214,136.89,136.87,0.05331348]
[1764177544205,6.5777,136.86,136.82,16.60597579]
[1764177544800,6.5777,136.86,136.82,78.60597579]
[1764177545109,6.5777,136.86,136.82,64.9848135]
[1764177545310,0.05081017,136.85,136.83,0.05483493]
[1764177547801,6.62911017,136.85,136.83,0.05483493]
[1764177549214,0.05081017,136.85,136.83,0.05483493]
[1764177552106,3.23081017,136.85,136.84,2.98]
[1764177553610,3.23081017,136.85,136.83,3.03483493]
[1764177553811,3.23081017,136.85,136.83,0.05483493]
[1764177554406,3.23081017,136.85,136.83,3.03483493]
[1764177554812,3.23081017,136.85,136.83,0.05483493]
[1764177555414,9.80921017,136.85,136.83,0.05483493]
[1764177555617,3.18,136.84,136.83,0.05483493]
[1764177558422,3.18,136.82,136.79,2.98]
[1764177558617,3.18,136.82,136.78,16.60116229]
[1764177558931,3.18,136.81,136.78,2.98]
[1764177559122,3.18,136.84,136.78,2.98]
[1764177559419,0.04678243,136.82,136.8,3.02636549]
[1764177561620,0.04678243,136.82,136.8,9.60706549]
[1764177561807,0.04678243,136.82,136.81,2.98]
[1764177563321,3.22678243,136.82,136.8,0.04636549]
[1764177563522,9.7602,136.81,136.8,0.04636549]
[1764177563918,0.04678243,136.82,136.8,3.02636549]
[1764177564628,0.04678243,136.82,136.8,9.60706549]
[1764177564926,0.04678243,136.82,136.81,2.98]
[1764177566723,3.22678243,136.82,136.8,0.04636549]
[1764177566929,3.22678243,136.82,136.76,2.98]
[1764177567229,3.18,136.82,136.76,2.98]
[1764177567528,3.18,136.81,136.76,2.98]
[1764177567921,3.23332156,136.8,136.77,0.05242254]
[1764177568124,3.23332156,136.8,136.78,2.98]
[1764177569228,0.05332156,136.8,136.78,2.98]
[1764177569617,3.23332156,136.8,136.78,2.98]
[1764177571026,0.05332156,136.8,136.78,2.98]
[1764177573628,0.05332156,136.8,136.78,9.5616]
[1764177573818,0.05332156,136.8,136.79,2.98]
[1764177582028,0.05332156,136.8,136.79,9.5612]
[1764177583632,3.12,136.86,136.82,3.12]
[1764177583834,3.12,136.86,136.79,13.62116229]
[1764177583835,3.12,136.89,136.84,3.12]
[1764177584133,3.12,136.9,136.84,3.12]
[1764177584433,0.04785802,136.88,136.87,3.12]
[1764177588534,3.16785802,136.88,136.86,0.05359551]
[1764177589734,3.12,136.87,136.86,0.05359551]
[1764177591836,4.58,136.87,136.86,0.05359551]
[1764177592137,3.12,136.85,136.82,3.12]
[1764177592543,3.12,136.89,136.82,3.12]
[1764177593130,3.17571598,136.87,136.84,3.17407765]
[1764177594634,3.12,136.86,136.84,0.05407765]
[1764177595737,3.12,136.85,136.84,0.05407765]
[1764177596541,3.17571598,136.87,136.84,3.17407765]
[1764177597745,9.75301598,136.87,136.84,3.17407765]
[1764177598942,0.05571598,136.87,136.84,3.17407765]
[1764177599344,3.17571598,136.87,136.84,3.17407765]
[1764177599942,3.12,136.86,136.84,3.17407765]
[1764177600341,3.12,136.86,136.84,0.05407765]
[1764177600539,9.6983,136.85,136.84,0.05407765]
[1764177604740,3.12,136.85,136.84,0.05407765]
[1764177606953,0.05571598,136.87,136.84,3.25407765]
[1764177608856,0.05571598,136.87,136.84,16.87523994]
[1764177609048,0.05571598,136.87,136.85,3.2]
[1764177609657,0.05571598,136.87,136.85,9.7782]
[1764177609955,0.05571598,136.87,136.86,3.2]
[1764177610557,3.07,136.92,136.88,3.2]
[1764177610754,3.07,136.93,136.88,3.2]
[1764177611346,3.07,136.93,136.89,3.06]
[1764177611652,0.05412204,136.92,136.9,3.10819556]
[1764177613850,2.98412204,136.92,136.9,3.10819556]
[1764177614359,0.05412204,136.92,136.9,3.10819556]
[1764177615659,2.98412204,136.92,136.9,0.04819556]
[1764177615859,2.93,136.91,136.9,0.04819556]
[1764177622862,0.05412204,136.92,136.9,3.10819556]
[1764177625767,0.05412204,136.92,136.9,9.68409556]
[1764177625968,0.05412204,136.92,136.91,3.06]
[1764177627256,2.98412204,136.92,136.9,0.04819556]
[1764177627457,2.98412204,136.92,136.9,3.10819556]
[1764177633770,0.05412204,136.92,136.9,3.10819556]
[1764177634374,2.98412204,136.92,136.9,3.10819556]
[1764177634576,0.05412204,136.92,136.9,3.10819556]
[1764177635076,2.98412204,136.92,136.9,3.10819556]
[1764177637181,0.05412204,136.92,136.91,9.6354]
[1764177637377,0.05412204,136.92,136.91,12.62168665]
[1764177638980,2.93,136.99,136.93,3.06]
[1764177639578,28.08628665,137.0,136.94,3.06]
[1764177639579,2.93,136.98,136.94,3.06]
[1764177640079,2.9848957,136.97,136.95,0.05422541]
[1764177640980,2.93,136.96,136.95,0.05422541]
[1764177643479,9.503,136.96,136.95,0.05422541]
[1764177645277,2.93,136.96,136.95,0.05422541]
[1764177649080,0.0548957,136.97,136.95,3.02422541]
[1764177649484,3.1648957,136.97,136.95,3.02422541]
[1764177650684,0.0548957,136.97,136.95,3.02422541]
[1764177651282,0.0548957,136.97,136.95,9.59762541]
[1764177651582,3.11,137.03,136.97,2.97]
[1764177651974,3.11,137.03,136.98,9.542]
[1764177652174,3.11,137.03,136.99,2.97]
[1764177652382,0.05004206,137.02,137.0,3.01707764]
[1764177654283,3.16004206,137.02,137.0,3.01707764]
[1764177655987,9.73034206,137.02,137.0,0.04707764]
[1764177656385,3.16004206,137.02,137.0,3.01707764]
[1764177656592,0.05004206,137.02,137.0,3.01707764]
[1764177660797,3.16004206,137.02,137.0,0.04707764]
[1764177661197,3.16004206,137.02,137.0,3.01707764]
[1764177661688,0.05004206,137.02,137.0,3.01707764]
[1764177661893,115.2709,137.11,137.0,3.01707764]
[1764177661894,6.09628665,137.11,137.03,2.97]
[1764177662086,3.11,137.11,137.06,2.97]
[1764177662292,3.11,137.11,137.08,2.97]
[1764177662793,0.05144418,137.11,137.08,3.01728904]
[1764177662988,6.09628665,137.17,137.1,2.97]
[1764177663298,3.11,137.17,137.12,2.97]
[1764177663494,6.09628665,137.17,137.12,2.97]
[1764177663701,3.11,137.16,137.12,2.97]
[1764177663896,3.16488622,137.15,137.13,0.05474702]
[1764177664104,3.16488622,137.15,137.13,3.02474702]
[1764177664897,3.16488622,137.15,137.13,0.05474702]
[1764177667400,3.16488622,137.15,137.13,2.99474702]
[1764177667793,3.16488622,137.15,137.13,0.05474702]
[1764177674795,0.05488622,137.15,137.13,2.99474702]
[1764177674995,2.98,137.2,137.13,2.99474702]
[1764177675598,2.98,137.2,137.16,2.94]
[1764177675904,2.98,137.25,137.16,2.94]
[1764177676105,2.98,137.23,137.17,2.98608742]
[1764177676290,3.03049827,137.22,137.17,2.98608742]
[1764177676494,3.03049827,137.22,137.18,2.988666]
[1764177676701,3.02718492,137.21,137.18,2.988666]
[1764177677300,0.04718492,137.21,137.18,2.988666]
[1764177678704,0.04718492,137.21,137.19,2.94]
[1764177689111,2.98,137.2,137.18,0.048666]
[1764177689804,9.5414,137.2,137.18,0.048666]
[1764177690010,2.98,137.19,137.18,0.048666]
[1764177690809,3.02718492,137.21,137.18,2.988666]
[1764177691509,9.5414,137.2,137.18,2.988666]
[1764177691699,2.98,137.19,137.18,0.048666]
[1764177691904,9.5414,137.2,137.18,0.048666]
[1764177693101,2.98,137.2,137.18,0.048666]
[1764177693310,3.02718492,137.21,137.18,2.988666]
[1764177693510,3.02718492,137.21,137.18,0.048666]
[1764177694816,2.98,137.2,137.18,0.048666]
[1764177696716,9.5413,137.2,137.18,0.048666]
[1764177697112,2.98,137.19,137.18,0.048666]
[1764177698321,9.5418,137.19,137.18,0.048666]
[1764177701812,3.07,137.17,137.13,2.94]
[1764177702016,3.07,137.17,137.1,2.93]
[1764177702616,9.6337,137.15,137.11,2.93]
[1764177702810,9.68260087,137.15,137.12,2.97754773]
[1764177703214,9.6347,137.13,137.12,0.04754773]
[1764177705327,3.07,137.11,137.07,2.93]
[1764177705822,3.07,137.1,137.07,2.93]
[1764177706324,3.11868289,137.1,137.07,2.97864594]
[1764177707723,0.04868289,137.1,137.07,2.97864594]
[1764177708327,0.04868289,137.1,137.08,64.93]
[1764177708510,0.04868289,137.1,137.09,2.93]
[1764177711423,0.04868289,137.1,137.07,6.61614594]
[1764177711620,0.04868289,137.1,137.08,2.93]
[1764177711823,0.04868289,137.1,137.08,9.497]
[1764177712128,0.04868289,137.1,137.09,2.93]
[1764177712519,0.04868289,137.1,137.09,64.93]
[1764177716538,0.04868289,137.1,137.09,89.95]
[1764177716740,3.07,137.14,137.1,2.93]
[1764177717622,0.04785979,137.13,137.11,2.97825333]
[1764177721928,3.07,137.12,137.06,2.93]
[1764177722432,3.07,137.11,137.03,5.0921]
[1764177722633,4.65072866,137.12,137.03,5.0921]
[1764177722634,3.07,137.08,137.03,5.0921]
[1764177722928,3.07,137.05,137.04,0.05363151]
[1764177727929,3.07,137.05,137.04,0.00363151]
[1764177728128,3.07,137.05,137.03,5.0921]
[1764177728334,3.07,137.05,137.03,2.95581873]
[1764177729125,3.07,137.05,137.03,3.00186468]
[1764177734436,3.07,137.05,137.03,0.00186468]
[1764177734636,3.03,137.04,136.96,3.11]
[1764177734842,3.03,137.04,136.97,3.11]
[1764177735043,3.03,137.04,136.99,3.11]
[1764177735240,3.03,137.06,136.99,3.11]
[1764177735635,3.03,137.06,137.02,3.11]
[1764177735636,0.04616262,137.04,137.02,3.11]
[1764177736544,0.04616262,137.04,137.02,6.08974857]
[1764177736745,0.04616262,137.04,137.03,3.11]
[1764177740751,3.03,137.1,137.03,3.11]
[1764177741051,3.03,137.1,137.07,3.11]
[1764177741552,3.03,137.12,137.07,3.11]
[1764177741753,3.08509625,137.11,137.08,3.16523099]
[1764177742543,3.08509625,137.11,137.08,0.05523099]
[1764177743053,3.08509625,137.11,137.08,3.16523099]
[1764177745752,9.5961,137.1,137.08,3.16523099]
[1764177745952,6.5661,137.1,137.08,3.16523099]
[1764177746855,9.5961,137.1,137.08,3.16523099]
[1764177747050,9.5961,137.1,137.08,0.05523099]
[1764177750460,3.03,137.09,137.08,0.05523099]
[1764177750666,9.5983,137.06,137.03,3.11]
[1764177751258,6.5683,137.06,137.03,3.11]
[1764177751661,6.61859157,137.06,137.03,3.15617832]
[1764177752268,6.5685,137.05,137.03,3.15617832]
[1764177754283,3.08029157,137.06,137.03,3.15617832]
[1764177754882,0.05029157,137.06,137.03,3.15617832]
[1764177755088,0.05029157,137.06,137.05,3.11]
[1764177755581,3.08029157,137.06,137.03,3.15617832]
[1764177756080,0.05029157,137.06,137.03,3.15617832]
[1764177760386,0.05029157,137.06,137.03,0.04617832]
[1764177760387,3.08029157,137.06,137.03,0.04617832]
[1764177760786,3.03,137.04,137.03,0.04617832]
[1764177763383,3.23029157,137.06,137.03,3.09617832]
[1764177763778,3.23029157,137.06,137.03,0.04617832]
[1764177764780,9.7485,137.05,137.03,0.04617832]
[1764177764979,3.18,137.04,137.03,0.04617832]
[1764177766787,9.749,137.04,137.03,0.04617832]
[1764177769896,0.05029157,137.06,137.03,3.09617832]
[1764177772195,0.05029157,137.06,137.05,3.05]
[1764177772794,3.18,137.13,137.06,3.05]
[1764177773098,3.18,137.16,137.09,3.05]
[1764177773481,9.7448,137.13,137.09,3.05]
[1764177773889,0.05159696,137.12,137.1,3.10429241]
[1764177777490,3.23159696,137.12,137.1,0.05429241]
[1764177777691,3.23159696,137.12,137.1,3.10429241]
[1764177780902,0.05159696,137.12,137.1,3.10429241]
[1764177781702,3.18,137.19,137.12,3.05]
[1764177781901,3.18,137.17,137.12,3.05]
[1764177782501,3.23513805,137.16,137.13,3.10478523]
[1764177783705,0.05513805,137.16,137.15,3.05]
[1764177783896,3.18,137.22,137.16,3.05]
[1764177784801,9.7406,137.22,137.17,3.05]
[1764177785003,0.04697128,137.2,137.18,3.09870535]
[1764177787515,0.04697128,137.2,137.19,3.02]
[1764177792221,9.69847128,137.2,137.18,0.04870535]
[1764177792518,9.69847128,137.2,137.18,3.21870535]
[1764177793218,0.04697128,137.2,137.18,3.21870535]
[1764177794012,3.09,137.19,137.18,0.04870535]
[1764177794515,9.69837128,137.2,137.18,0.04870535]
[1764177797219,6.5618,137.19,137.18,0.04870535]
[1764177799418,3.13697128,137.2,137.18,0.04870535]
[1764177799722,0.04697128,137.2,137.18,3.21870535]
[1764177800422,3.13697128,137.2,137.18,3.21870535]
[1764177803330,3.13697128,137.2,137.18,0.04870535]
[1764177808440,0.04697128,137.2,137.18,3.21870535]
[1764177808629,3.09,137.25,137.18,3.21870535]
[1764177808828,3.09,137.25,137.18,3.17]
[1764177809435,3.09,137.25,137.22,3.17]
[1764177809739,3.13897777,137.25,137.22,3.2217526]
[1764177811643,0.04897777,137.25,137.22,3.2217526]
[1764177811936,0.04897777,137.25,137.22,9.7821526]
[1764177812244,0.04897777,137.25,137.23,3.17]
[1764177819038,0.04897777,137.25,137.23,9.7298]
[1764177819237,0.04897777,137.25,137.24,3.17]
[1764177820144,0.04897777,137.25,137.22,0.0517526]